fUSD/lending_fUSD_20260426
["ID","MTS","AMOUNT","RATE_DAILY","PERIOD"]
[421158537,1777186246392,-255.0,7.968e-05,2]
[421158539,1777186246402,-1200.0,7.968e-05,2]
[421158541,1777186246411,-250.0,7.969e-05,2]
[421158543,1777186246421,-150.0,8.088e-05,2]
[421158545,1777186246432,-150.0,8.088e-05,2]
[421158548,1777186246442,-150.0,8.088e-05,2]
[421158550,1777186246452,-150.0,8.088e-05,2]
[421158552,1777186246462,-150.0,8.088e-05,2]
[421158554,1777186246472,-150.0,8.088e-05,2]
[421158556,1777186246481,-150.0,8.088e-05,2]
[421158558,1777186246491,-150.0,8.088e-05,2]
[421158560,1777186246501,-150.0,8.088e-05,2]
[421158562,1777186246510,-500.0,8.088e-05,2]
[421158564,1777186246520,-150.0,8.163e-05,2]
[421158566,1777186246530,-536.56,8.166e-05,2]
[421158568,1777186246541,-150.0,8.178e-05,2]
[421158570,1777186246551,-150.0,8.2e-05,2]
[421158572,1777186246560,-150.0,8.216e-05,2]
[421158574,1777186246570,-280.0,8.219e-05,2]
[421158576,1777186246580,-150.0,8.237e-05,2]
[421158578,1777186246593,-150.0,8.237e-05,2]
[421158580,1777186246603,-150.0,8.267e-05,2]
[421158581,1777186246612,-150.0,8.267e-05,2]
[421158583,1777186246623,-150.0,8.312e-05,2]
[421158585,1777186246632,-150.0,8.312e-05,2]
[421158586,1777186246641,-578.20924308,8.339e-05,2]
[421158587,1777186246651,-151.0,8.339e-05,2]
[421158588,1777186246661,-150.0,8.344e-05,2]
[421158589,1777186246670,-150.0,8.357e-05,2]
[421158590,1777186246679,-150.0,8.387e-05,2]
[421158591,1777186246689,-150.0,8.387e-05,2]
[421158592,1777186246698,-150.0,8.387e-05,2]
[421158593,1777186246707,-150.0,8.425e-05,2]
[421158594,1777186246717,-536.59,8.44e-05,2]
[421158595,1777186246727,-150.0,8.447e-05,2]
[421158596,1777186246737,-150.0,8.447e-05,2]
[421158597,1777186246746,-150.0,8.462e-05,2]
[421158598,1777186246756,-150.0,8.473e-05,2]
[421158599,1777186246765,-5042.4734117,8.533e-05,2]
[421158600,1777186246774,-150.0,8.537e-05,2]
[421158601,1777186246783,-150.0,8.537e-05,2]
[421158602,1777186246793,-150.0,8.537e-05,2]
[421158603,1777186246802,-150.0,8.537e-05,2]
[421158604,1777186246812,-150.0,8.601e-05,2]
[421158605,1777186246822,-150.0,8.612e-05,2]
[421158606,1777186246831,-150.0,8.627e-05,2]
[421158607,1777186246840,-150.0,8.627e-05,2]
[421158608,1777186246850,-150.0,8.649e-05,2]
[421158609,1777186246859,-150.0,8.687e-05,2]
[421158610,1777186246871,-150.0,8.687e-05,2]
[421158611,1777186246880,-150.0,8.687e-05,2]
[421158612,1777186246890,-150.0,8.717e-05,2]
[421158613,1777186246903,-150.0,8.73e-05,2]
[421158614,1777186246913,-150.0,8.762e-05,2]
[421158615,1777186246922,-150.0,8.762e-05,2]
[421158616,1777186246932,-2351.0,8.764e-05,2]
[421158617,1777186246941,-433.0,8.765e-05,2]
[421158618,1777186246951,-150.0,8.807e-05,2]
[421158619,1777186246960,-150.0,8.807e-05,2]
[421158620,1777186246970,-150.0,8.837e-05,2]
[421158621,1777186246980,-150.0,8.837e-05,2]
[421158622,1777186246989,-150.0,8.858e-05,2]
[421158623,1777186246999,-150.0,8.874e-05,2]
[421158624,1777186247009,-150.0,8.896e-05,2]
[421158625,1777186247019,-150.0,8.911e-05,2]
[421158626,1777186247028,-150.00000001,8.986e-05,2]
[421158627,1777186247039,-150.0,8.986e-05,2]
[421158628,1777186247048,-277.328,8.986e-05,2]
[421158629,1777186247057,-176.894,8.986e-05,2]
[421158630,1777186247067,-150.0,8.986e-05,2]
[421158631,1777186247076,-150.0,8.986e-05,2]
[421158632,1777186247085,-150.00000002,8.986e-05,2]
[421158633,1777186247095,-1280.88388878,8.988e-05,2]
[421158634,1777186247105,-135.78749825,8.988e-05,2]
[421158635,1777186310252,500.0,7.241e-05,2]
[421158636,1777186325340,236.0,7.241e-05,3]
[421158637,1777186335417,213.74,0.000166,120]
[421158638,1777186357621,214.46,0.000166,120]
[421158639,1777186358229,9264.01,7.144e-05,2]
[421158640,1777186358257,10000.01,7.144e-05,2]
[421158641,1777186369906,-10000.01,7.144e-05,2]
[421158642,1777186370032,-10000.01,7.144e-05,2]
[421158643,1777186373115,-10000.01,7.144e-05,2]
[421158644,1777186373412,-10000.01,7.144e-05,2]
[421158645,1777186373533,-10000.01,7.144e-05,2]
[421158646,1777186373681,-10000.01,7.144e-05,2]
[421158647,1777186373804,-10000.01,7.144e-05,2]
[421158648,1777186373904,-10000.01,7.144e-05,2]
[421158649,1777186379103,-10000.01,7.144e-05,2]
[421158650,1777186379196,-10000.01,7.144e-05,2]
[421158651,1777186382959,-300.0,7.143e-05,2]
[421158652,1777186383065,-9400.01,7.144e-05,2]
[421158653,1777186383079,-10000.01,7.144e-05,2]
[421158654,1777186383093,-10000.01,7.144e-05,2]
[421158655,1777186383118,-10000.01,7.144e-05,2]
[421158656,1777186383132,-10000.01,7.144e-05,2]
[421158657,1777186383151,-10000.01,7.144e-05,2]
[421158658,1777186387338,-500.00020884,7.144e-05,2]
[421158659,1777186544368,375.91303789,9.17e-05,21]
[421158661,1777186714320,-150.0,7.142e-05,2]
[421158662,1777186714350,-300.0,7.142e-05,2]
[421158663,1777186714381,-300.0,7.142e-05,2]
[421158664,1777186714410,-244.0,7.142e-05,2]
[421158665,1777186741003,300.0,7.142e-05,2]
[421158666,1777186744490,-220.06749278,7.143e-05,2]
[421158667,1777186744521,-500.0,7.143e-05,2]
[421158668,1777186744551,-398.97258881,7.143e-05,2]
[421158669,1777186744583,-500.0,7.143e-05,2]
[421158670,1777186744614,-500.0,7.143e-05,2]
[421158671,1777186744646,-500.0,7.143e-05,2]
[421158672,1777186744677,-500.0,7.143e-05,2]
[421158673,1777186744707,-500.85057544,7.143e-05,2]
[421158674,1777186744736,-500.0,7.143e-05,2]
[421158675,1777186744773,-500.0,7.143e-05,2]
[421158676,1777186744809,-260.22868594,7.143e-05,2]
[421158677,1777186745069,-239.77131406,7.143e-05,2]
[421158678,1777186745100,-500.0,7.143e-05,2]
[421158679,1777186745137,-500.0,7.143e-05,2]
[421158680,1777186745195,-500.0,7.143e-05,2]
[421158681,1777186745226,-551.87139845,7.143e-05,2]
[421158682,1777186745264,-500.0,7.143e-05,2]
[421158683,1777186745301,-500.0,7.143e-05,2]
[421158684,1777186745339,-500.0,7.143e-05,2]
[421158685,1777186745376,-500.0,7.143e-05,2]
[421158686,1777186745411,-500.0,7.143e-05,2]
[421158687,1777186745466,-500.0,7.143e-05,2]
[421158688,1777186745506,-500.0,7.143e-05,2]
[421158689,1777186745547,-500.0,7.143e-05,2]
[421158690,1777186745584,-500.0,7.143e-05,2]
[421158691,1777186745621,-500.0,7.143e-05,2]
[421158692,1777186745659,-500.0,7.143e-05,2]
[421158693,1777186745697,-500.0,7.143e-05,2]
[421158694,1777186745734,-500.0,7.143e-05,2]
[421158695,1777186745771,-500.0,7.143e-05,2]
[421158696,1777186745808,-500.0,7.143e-05,2]
[421158697,1777186745907,-500.0,7.143e-05,2]
[421158698,1777186745945,-500.0,7.143e-05,2]
[421158699,1777186745981,-500.0,7.143e-05,2]
[421158700,1777186746019,-500.0,7.143e-05,2]
[421158701,1777186746056,-500.0,7.143e-05,2]
[421158702,1777186746094,-500.0,7.143e-05,2]
[421158703,1777186746132,-500.0,7.143e-05,2]
[421158704,1777186746170,-500.0,7.143e-05,2]
[421158705,1777186746211,-500.0,7.143e-05,2]
[421158706,1777186746248,-500.0,7.143e-05,2]
[421158707,1777186746380,-500.0,7.143e-05,2]
[421158708,1777186746418,-277.35204621,7.143e-05,2]
[421158709,1777186746455,-500.0,7.143e-05,2]
[421158710,1777186746491,-500.0,7.143e-05,2]
[421158711,1777186746528,-500.0,7.143e-05,2]
[421158712,1777186746564,-500.0,7.143e-05,2]
[421158713,1777186746601,-500.0,7.143e-05,2]
[421158714,1777186746639,-500.0,7.143e-05,2]
[421158715,1777186746677,-500.0,7.143e-05,2]
[421158716,1777186746716,-500.0,7.143e-05,2]
[421158717,1777186747026,3133.42695189,7.143e-05,2]
[421158718,1777186748175,-500.0,7.143e-05,2]
[421158719,1777186748225,-500.0,7.143e-05,2]
[421158720,1777186748272,-500.0,7.143e-05,2]
[421158721,1777186748319,-500.0,7.143e-05,2]
[421158722,1777186748367,-500.0,7.143e-05,2]
[421158723,1777186748413,-500.0,7.143e-05,2]
[421158724,1777186748459,-500.0,7.143e-05,2]
[421158725,1777186748504,-500.0,7.143e-05,2]
[421158726,1777186748548,-500.0,7.143e-05,2]
[421158727,1777186748592,-500.0,7.143e-05,2]
[421158728,1777186749928,-500.0,7.143e-05,2]
[421158729,1777186750042,-500.0,7.143e-05,2]
[421158730,1777186750081,-500.0,7.143e-05,2]
[421158731,1777186750119,-500.0,7.143e-05,2]
[421158732,1777186750156,-500.0,7.143e-05,2]
[421158733,1777186750194,-500.0,7.143e-05,2]
[421158734,1777186750233,-500.0,7.143e-05,2]
[421158735,1777186750270,-500.0,7.143e-05,2]
[421158736,1777186750308,-168.86173757,7.143e-05,2]
[421158737,1777186750348,-500.0,7.143e-05,2]
[421158738,1777186750385,-162.28652486,7.143e-05,2]
[421158739,1777186753615,-337.71347514,7.143e-05,2]
[421158740,1777186753652,-500.0,7.143e-05,2]
[421158741,1777186753689,-500.0,7.143e-05,2]
[421158742,1777186753726,-500.0,7.143e-05,2]
[421158743,1777186753762,-500.0,7.143e-05,2]
[421158744,1777186753799,-500.0,7.143e-05,2]
[421158745,1777186753835,-500.0,7.143e-05,2]
[421158746,1777186753871,-500.0,7.143e-05,2]
[421158747,1777186753909,-500.0,7.143e-05,2]
[421158748,1777186753947,-500.0,7.143e-05,2]
[421158749,1777186754987,-500.0,7.143e-05,2]
[421158750,1777186755024,-500.0,7.143e-05,2]
[421158751,1777186755060,-500.0,7.143e-05,2]
[421158752,1777186755098,-500.0,7.143e-05,2]
[421158753,1777186755134,-500.0,7.143e-05,2]
[421158754,1777186755170,-500.0,7.143e-05,2]
[421158755,1777186755208,-500.0,7.143e-05,2]
[421158756,1777186755244,-500.0,7.143e-05,2]
[421158757,1777186755282,-500.0,7.143e-05,2]
[421158758,1777186755319,-500.0,7.143e-05,2]
[421158759,1777186755476,-166.88617376,7.143e-05,2]
[421158760,1777186755513,-500.0,7.143e-05,2]
[421158761,1777186755551,-500.0,7.143e-05,2]
[421158762,1777186777999,279.10830864,7.143e-05,2]
[421158763,1777186789991,590.2959865,7.143e-05,2]
[421158764,1777186801132,300.0,7.142e-05,2]
[421158765,1777186801171,1200.0,7.142e-05,2]
[421158766,1777186801218,300.0,7.142e-05,2]
[421158767,1777186815795,500.0,7.143e-05,2]
[421158768,1777186815836,500.0,7.143e-05,2]
[421158769,1777186815881,500.0,7.143e-05,2]
[421158770,1777186815921,500.0,7.143e-05,2]
[421158771,1777186815971,500.0,7.143e-05,2]
[421158772,1777186816010,500.0,7.143e-05,2]
[421158773,1777186816055,500.0,7.143e-05,2]
[421158774,1777186816156,500.0,7.143e-05,2]
[421158775,1777186816227,500.0,7.143e-05,2]
[421158776,1777186816271,500.0,7.143e-05,2]
[421158777,1777186816320,500.0,7.143e-05,2]
[421158778,1777186816364,500.0,7.143e-05,2]
[421158779,1777186816405,500.0,7.143e-05,2]
[421158780,1777186816453,500.0,7.143e-05,2]
[421158781,1777186816497,330.60570486,7.143e-05,2]
[421158782,1777186816529,169.39429514,7.143e-05,2]
[421158783,1777186816575,500.0,7.143e-05,2]
[421158784,1777186816618,511.07263812,7.143e-05,2]
[421158785,1777186816659,500.0,7.143e-05,2]
[421158786,1777186816704,500.0,7.143e-05,2]
[421158787,1777186816786,500.0,7.143e-05,2]
[421158788,1777186816892,500.0,7.143e-05,2]
[421158789,1777186858965,500.07344182,7.143e-05,2]
[421158790,1777186863935,187.95651894,9.109e-05,21]
[421158791,1777186983809,500.0,7.143e-05,2]
[421158792,1777186984010,500.0,7.143e-05,2]
[421158793,1777186984042,500.0,7.143e-05,2]
[421158794,1777186984275,529.28081217,7.143e-05,2]
[421158795,1777186996476,500.0,7.143e-05,2]
[421158796,1777186996514,500.0,7.143e-05,2]
[421158797,1777186996554,500.0,7.143e-05,2]
[421158798,1777186996596,500.0,7.143e-05,2]
[421158799,1777186996637,500.0,7.143e-05,2]
[421158800,1777186996685,500.0,7.143e-05,2]
[421158801,1777186996721,500.0,7.143e-05,2]
[421158802,1777186996759,500.0,7.143e-05,2]
[421158803,1777186996799,290.18881275,7.143e-05,2]
[421158804,1777187111383,-216.62626128,7.142e-05,2]
[421158805,1777187320966,10000.01,7.044e-05,2]
[421158806,1777187320996,10000.01,7.044e-05,2]
[421158807,1777187333207,-384.50497851,7.044e-05,2]
[421158808,1777187335682,-200.0,7.044e-05,2]
[421158809,1777187338963,-180.69662149,7.044e-05,2]
[421158810,1777187340879,-500.00025668,7.044e-05,2]
[421158811,1777187344144,-300.0,7.043e-05,2]
[421158812,1777187344169,-127.9744764,7.043e-05,2]
[421158813,1777187345579,-172.0255236,7.043e-05,2]
[421158814,1777187345604,-208.39654791,7.043e-05,2]
[421158815,1777187347035,-91.60345209,7.043e-05,2]
[421158816,1777187347061,-150.0,7.043e-05,2]
[421158817,1777187347091,-258.39654791,7.044e-05,2]
[421158818,1777187350297,-257.0,7.044e-05,2]
[421158819,1777187354397,-578.46247759,7.044e-05,2]
[421158821,1777187432068,-1200.0,7.043e-05,2]
[421158822,1777187432078,-6935.40626585,7.044e-05,2]
[421158829,1777187432569,-134318.34525197,7.044e-05,2]
[421158830,1777187432578,-243.0,7.044e-05,2]
[421158831,1777187432588,-250.0,7.143e-05,2]
[421158832,1777187432597,-500.0,7.143e-05,2]
[421158833,1777187432607,-484.91184636,7.143e-05,2]
[421158834,1777187432616,-500.0,7.143e-05,2]
[421158835,1777187432625,-500.0,7.143e-05,2]
[421158836,1777187432634,-500.0,7.143e-05,2]
[421158837,1777187432643,-500.0,7.143e-05,2]
[421158838,1777187432652,-500.0,7.143e-05,2]
[421158839,1777187432662,-500.0,7.143e-05,2]
[421158840,1777187432671,-500.0,7.143e-05,2]
[421158841,1777187432679,-500.0,7.143e-05,2]
[421158842,1777187432690,-500.0,7.143e-05,2]
[421158843,1777187432699,-500.0,7.143e-05,2]
[421158844,1777187432708,-500.0,7.143e-05,2]
[421158845,1777187432717,-500.0,7.143e-05,2]
[421158846,1777187432726,-500.0,7.143e-05,2]
[421158847,1777187432735,-500.0,7.143e-05,2]
[421158848,1777187432744,-500.0,7.143e-05,2]
[421158849,1777187432754,-500.0,7.143e-05,2]
[421158850,1777187432763,-500.0,7.143e-05,2]
[421158851,1777187432773,-500.0,7.143e-05,2]
[421158852,1777187432782,-500.0,7.143e-05,2]
[421158853,1777187432792,-500.0,7.143e-05,2]
[421158854,1777187432801,-500.0,7.143e-05,2]
[421158855,1777187432810,-500.0,7.143e-05,2]
[421158856,1777187432819,-500.0,7.143e-05,2]
[421158857,1777187432828,-500.0,7.143e-05,2]
[421158858,1777187432837,-500.0,7.143e-05,2]
[421158859,1777187432846,-500.0,7.143e-05,2]
[421158860,1777187432855,-500.0,7.143e-05,2]
[421158861,1777187432865,-500.0,7.143e-05,2]
[421158862,1777187432874,-500.0,7.143e-05,2]
[421158863,1777187432883,-500.0,7.143e-05,2]
[421158864,1777187432892,-500.0,7.143e-05,2]
[421158865,1777187432901,-500.0,7.143e-05,2]
[421158866,1777187432911,-500.0,7.143e-05,2]
[421158867,1777187432920,-500.0,7.143e-05,2]
[421158868,1777187432929,-500.0,7.143e-05,2]
[421158869,1777187432938,-500.0,7.143e-05,2]
[421158870,1777187432947,-500.0,7.143e-05,2]
[421158871,1777187432956,-500.0,7.143e-05,2]
[421158872,1777187432965,-500.0,7.143e-05,2]
[421158873,1777187432975,-500.0,7.143e-05,2]
[421158874,1777187432984,-500.0,7.143e-05,2]
[421158875,1777187432994,-500.0,7.143e-05,2]
[421158876,1777187433003,-500.0,7.143e-05,2]
[421158877,1777187433013,-500.0,7.143e-05,2]
[421158878,1777187433022,-174.68450427,7.143e-05,2]
[421158879,1777187433031,-500.0,7.143e-05,2]
[421158880,1777187433040,-500.0,7.143e-05,2]
[421158881,1777187433049,-500.0,7.143e-05,2]
[421158882,1777187433059,-154.04724495,7.143e-05,2]
[421158883,1777187433068,-500.0,7.143e-05,2]
[421158884,1777187433077,-500.0,7.143e-05,2]
[421158885,1777187433086,-500.0,7.143e-05,2]
[421158886,1777187433095,-500.0,7.143e-05,2]
[421158887,1777187433104,-500.0,7.143e-05,2]
[421158888,1777187433119,-500.0,7.143e-05,2]
[421158889,1777187433129,-500.0,7.143e-05,2]
[421158890,1777187433138,-500.0,7.143e-05,2]
[421158891,1777187433148,-500.0,7.143e-05,2]
[421158892,1777187433157,-500.0,7.143e-05,2]
[421158893,1777187433167,-500.0,7.143e-05,2]
[421158894,1777187433176,-500.0,7.143e-05,2]
[421158895,1777187433186,-600.0,7.143e-05,2]
[421158896,1777187433196,-500.0,7.143e-05,2]
[421158897,1777187433206,-500.0,7.143e-05,2]
[421158898,1777187433215,-500.0,7.143e-05,2]
[421158899,1777187433224,-172.43015538,7.143e-05,2]
[421158900,1777187433234,-500.0,7.143e-05,2]
[421158901,1777187433243,-224.47550547,7.143e-05,2]
[421158902,1777187433253,-500.0,7.143e-05,2]
[421158903,1777187433262,-518.20018045,7.143e-05,2]
[421158904,1777187433272,-500.0,7.143e-05,2]
[421158905,1777187433281,-500.0,7.143e-05,2]
[421158906,1777187433291,-500.0,7.143e-05,2]
[421158907,1777187433300,-500.0,7.143e-05,2]
[421158908,1777187433310,-620.8,7.143e-05,2]
[421158909,1777187433319,-500.0,7.143e-05,2]
[421158910,1777187433328,-500.0,7.143e-05,2]
[421158911,1777187433338,-1023.43749121,7.143e-05,2]
[421158912,1777187433347,-3795.09126293,7.143e-05,2]
[421158913,1777187433357,-500.0,7.143e-05,2]
[421158914,1777187433366,-163.0,7.143e-05,3]
[421158915,1777187433375,-476.0,7.143e-05,3]
[421158916,1777187433385,-155.0,7.143e-05,3]
[421158917,1777187433395,-250.0,7.143e-05,2]
[421158918,1777187433404,-500.0,7.144e-05,2]
[421158919,1777187433414,-3255.07237781,7.144e-05,2]
[421158920,1777187433423,-152.0,7.21e-05,7]
[421158921,1777187433432,-152.0,7.217e-05,7]
[421158922,1777187433442,-691.64153846,7.332e-05,2]
[421158923,1777187433452,-1000.0,7.332e-05,2]
[421158924,1777187433462,-300.0,7.747e-05,2]
[421158925,1777187433471,-255.0,7.747e-05,2]
[421158926,1777187433481,-1201.0,7.747e-05,2]
[421158927,1777187433491,-319.8493573,7.856e-05,2]
[421158928,1777187433500,-250.0,7.856e-05,2]
[421158929,1777187433510,-578.20924308,8.042e-05,2]
[421158930,1777187433524,-1226.19808979,8.042e-05,2]
[421158931,1777187433533,-646.65982734,8.042e-05,2]
[421158932,1777187433544,-2257.797218,8.178e-05,2]
[421158933,1777187433554,-500.0,8.219e-05,2]
[421158934,1777187433563,-150.20121799,8.219e-05,2]
[421158935,1777187433572,-500.0,8.219e-05,2]
[421158936,1777187433583,-500.0,8.219e-05,2]
[421158937,1777187433592,-280.0,8.219e-05,2]
[421158938,1777187433602,-500.0,8.219e-05,2]
[421158939,1777187433612,-588.59,8.3e-05,2]
[421158940,1777187433621,-1489.00799506,8.388e-05,2]
[421158941,1777187433630,-325.0,8.484e-05,2]
[421158942,1777187433640,-257.0,8.522e-05,2]
[421158943,1777187433649,-211.72,8.656e-05,2]
[421158944,1777187433659,-93275.31935557,8.7e-05,2]
[421158945,1777187433668,-476.0,8.904e-05,3]
[421158946,1777187433679,-197.48,8.984e-05,2]
[421158947,1777187433689,-2992.59378906,9e-05,2]
[421158948,1777187433702,-244.0,9.468e-05,2]
[421158949,1777187433712,-773.93821731,9.557e-05,2]
[421158950,1777187433721,-151.0,0.0001,2]
[421158951,1777187433730,-151.0,0.0001,2]
[421158952,1777187433739,-151.0,0.0001,2]
[421158953,1777187433749,-500.0,0.0001,2]
[421158954,1777187433759,-151.0,0.0001,2]
[421158955,1777187433768,-500.0,0.0001,2]
[421158956,1777187433777,-500.0,0.0001,2]
[421158957,1777187433787,-151.0,0.0001,2]
[421158958,1777187433796,-500.0,0.0001,2]
[421158959,1777187433805,-151.0,0.0001,2]
[421158960,1777187433815,-500.0,0.0001,2]
[421158961,1777187433824,-151.0,0.0001,2]
[421158962,1777187433834,-151.0,0.0001,2]
[421158963,1777187433844,-500.0,0.0001,2]
[421158964,1777187433854,-151.0,0.0001,2]
[421158965,1777187433863,-500.0,0.0001,2]
[421158966,1777187433872,-151.0,0.0001,2]
[421158967,1777187433882,-151.0,0.0001,2]
[421158968,1777187433891,-151.0,0.0001,2]
[421158969,1777187433901,-151.0,0.0001,2]
[421158970,1777187433910,-151.0,0.0001,2]
[421158971,1777187433923,-151.0,0.0001,2]
[421158972,1777187433932,-151.0,0.0001,2]
[421158973,1777187433942,-151.0,0.0001,2]
[421158974,1777187433952,-151.0,0.0001,2]
[421158975,1777187433962,-151.0,0.0001,2]
[421158976,1777187433972,-151.0,0.0001,2]
[421158977,1777187433981,-458.3251348,0.0001,2]
[421158978,1777187433991,-151.0,0.0001,2]
[421158979,1777187434000,-151.0,0.0001,2]
[421158980,1777187434010,-151.0,0.0001,2]
[421158981,1777187434020,-151.0,0.0001,2]
[421158982,1777187434029,-300.14543402,0.0001,2]
[421158983,1777187434039,-4780.266,0.00010017,2]
[421158984,1777187434048,-372.231,0.00010017,2]
[421158985,1777187434058,-351.41025361,0.000102,2]
[421158986,1777187434068,-1144.51415225,0.00010216,2]
[421158987,1777187434077,-150.0,0.00010226,2]
[421158988,1777187434087,-150.0,0.00010226,2]
[421158989,1777187434097,-150.0,0.00010226,2]
[421158990,1777187434107,-150.0,0.00010226,2]
[421158991,1777187434116,-176.27925153,0.00010226,2]
[421158992,1777187434126,-184.62673638,0.00010226,2]
[421158993,1777187434135,-5529.0,0.000103,5]
[421158994,1777187434145,-1093.53209962,0.00010379,2]
[421158995,1777187434154,-1000.0,0.00010432,2]
[421158996,1777187434164,-1000.0,0.0001044,2]
[421158997,1777187434174,-1000.0,0.00010455,2]
[421158998,1777187434183,-1000.0,0.00010467,2]
[421158999,1777187434192,-1000.0,0.00010472,2]
[421159000,1777187434202,-1000.0,0.00010472,2]
[421159001,1777187434212,-1000.0,0.00010475,2]
[421159002,1777187434221,-1000.0,0.00010476,2]
[421159003,1777187434230,-1000.0,0.00010486,2]
[421159004,1777187434240,-1000.0,0.0001049,2]
[421159005,1777187434249,-1000.0,0.00010491,2]
[421159006,1777187434258,-1000.0,0.000105,2]
[421159007,1777187434268,-1000.0,0.00010511,2]
[421159008,1777187434278,-3132.89,0.00010521,2]
[421159009,1777187434288,-1000.0,0.00010521,2]
[421159010,1777187434297,-1445.0,0.00010532,2]
[421159011,1777187434307,-1000.0,0.00010535,2]
[421159012,1777187434316,-1000.0,0.00010543,2]
[421159013,1777187434326,-1000.0,0.00010556,2]
[421159014,1777187434335,-1000.0,0.00010558,2]
[421159015,1777187434345,-1000.0,0.00010558,2]
[421159016,1777187434354,-1000.0,0.00010563,2]
[421159017,1777187434380,-1000.0,0.00010566,2]
[421159018,1777187434390,-309.0,0.00010567,5]
[421159019,1777187434400,-1000.0,0.00010578,2]
[421159020,1777187434410,-1000.0,0.00010587,2]
[421159021,1777187434420,-2000.0,0.0001059,2]
[421159022,1777187434430,-2000.0,0.0001059,2]
[421159023,1777187434440,-2000.0,0.0001059,2]
[421159024,1777187434449,-2000.0,0.0001059,2]
[421159025,1777187434459,-1000.0,0.00010597,2]
[421159026,1777187434468,-199.48708089,0.000106,2]
[421159027,1777187434478,-5869.50142813,0.000106,2]
[421159028,1777187434488,-5000.0,0.000106,2]
[421159029,1777187434498,-1381.19338496,0.000106,2]
[421159030,1777187434507,-1000.0,0.00010606,2]
[421159031,1777187434516,-1000.0,0.00010611,2]
[421159032,1777187434526,-1000.0,0.00010613,2]
[421159033,1777187434536,-1000.0,0.00010613,2]
[421159034,1777187434546,-1000.0,0.00010617,2]
[421159035,1777187434556,-1000.0,0.00010635,2]
[421159036,1777187434566,-1000.0,0.00010643,2]
[421159037,1777187434576,-1000.0,0.00010662,2]
[421159038,1777187434585,-476.0,0.00010665,3]
[421159039,1777187434595,-1000.0,0.00010667,2]
[421159040,1777187434606,-1000.0,0.00010681,2]
[421159041,1777187434616,-1000.0,0.00010686,2]
[421159042,1777187434626,-161.0,0.0001069,2]
[421159043,1777187434636,-1000.0,0.0001069,2]
[421159044,1777187434645,-1000.35827116,0.0001069,2]
[421159045,1777187434656,-1000.0,0.00010694,2]
[421159046,1777187434667,-151.0,0.00010697,2]
[421159047,1777187434676,-151.0,0.00010697,2]
[421159048,1777187434686,-272.0,0.000107,5]
[421159049,1777187434695,-250.0,0.000107,2]
[421159050,1777187434705,-275489.12315987,0.000107,2]
[421159053,1777187439169,-500.0,7.142e-05,2]
[421159054,1777187439179,-36148.37790165,0.000107,2]
[421159055,1777187439190,-48993.48432967,0.000107,2]
[421159056,1777187439202,-829.67010334,0.000107,2]
[421159057,1777187439213,-1672.30320896,0.000107,2]
[421159061,1777187440754,-301.717,0.000107,2]
[421159062,1777187442650,3059.93702905,7.144e-05,2]
[421159077,1777187443178,-161.0,0.0001069,2]
[421159078,1777187443189,-39277.74961752,0.000107,2]
[421159079,1777187443198,-125571.38480291,0.000107,2]
[421159080,1777187443209,-180192.20361159,0.000107,2]
[421159081,1777187443219,-2000.0,0.000107,2]
[421159082,1777187443229,-2000.0,0.000107,2]
[421159083,1777187443239,-151.0,0.000107,2]
[421159084,1777187443249,-161.0,0.0001071,2]
[421159085,1777187443259,-450.35244677,0.00010781,2]
[421159086,1777187443268,-670.58624095,0.00010781,2]
[421159087,1777187443278,-1486.82857596,0.000109,2]